Cogmind - Beta 17 @@@ ROGUE MODE // 2026.06.29 @ 19:27:47 Player: Conwew Result: Destroyed by MR-NH6(R) with Subdweller Machine Gun Performance ------------- Evolutions (0) 0 Regions Visited (3) 600 Robots Destroyed (17) 85 Value Destroyed (293) 293 Prototype IDs (1) 20 Alien Tech Used (0) 0 Bonus (0) 0 TOTAL SCORE: 998 Bonus ------- None Cogmind --------- Core Integrity 0/250 Matter 288/300 Energy 78/100 System Corruption 0% Temperature Cool (0) Movement Walking (190) Ox1 Location -10/Subcaves Parts ------- > --- POWER (1) -------- (None) > --- PROPULSION (2) --- Aluminum Leg > --- UTILITY (2) ------ Visual Processing Unit Sensor Drone Bay (15/20) > --- WEAPON (2) ------- Medium Laser Light Assault Rifle > --- INVENTORY (5) ---- Aluminum Leg Subdweller Laser Peak State ------------ > --- POWER ------------ (None) > --- PROPULSION ------- Aluminum Leg > --- UTILITY ---------- Visual Processing Unit Sensor Drone Bay > --- WEAPON ----------- Medium Laser Light Assault Rifle > --- INVENTORY -------- Aluminum Leg Subdweller Laser Light Assault Rifle [Rating: 13] Favorites ----------- Power Ion Engine Engine Ion Engine Propulsion Aluminum Leg Leg Aluminum Leg Utility Visual Processing Unit Device Sensor Drone Bay Processor Visual Processing Unit Protection Light Armor Plating Weapon Medium Laser Energy Gun Medium Laser Ballistic Gun Light Assault Rifle Build | -11 -10 -10 -10 ------- Run | Yrd Mat Min Sub Slots Evolved . | . . . . Power . | . . . . Propulsion . | . . . . Utility . | . . . . Weapon . | . . . . Parts Attached 13 | 4 3 3 3 Power 1 | 1 . . . Engine 1 | 1 . . . Core . | . . . . Reactor . | . . . . Propulsion 4 | 2 . 2 . Treads . | . . . . Leg 4 | 2 . 2 . Wheel . | . . . . Hover . | . . . . Flight . | . . . . Utility 4 | . 2 1 1 Device 1 | . . . 1 Storage . | . . . . Processor 1 | . 1 . . Hackware . | . . . . Protection 2 | . 1 1 . Artifact . | . . . . Weapon 4 | 1 1 . 2 Energy Gun 1 | 1 . . . Energy Cannon . | . . . . Ballistic Gun 3 | . 1 . 2 Ballistic Cannon . | . . . . Launcher . | . . . . Special Weapon . | . . . . Impact Weapon . | . . . . Slashing Weapon . | . . . . Piercing Weapon . | . . . . Special Melee Weapon . | . . . . Unidentified Prototypes 1 | . . . 1 Parts Lost 5 | . . . 5 Power 1 | . . . 1 Propulsion 1 | . . . 1 Utility 1 | . . . 1 Weapon 2 | . . . 2 Highest Loss Streak 4 | . . . 4 To Critical Strikes . | . . . . Average Backups 4 | . 4 4 3 Power . | . . . . Propulsion 2 | . 2 2 1 Utility . | . . . . Weapon 1 | . 1 2 1 Tool/Special . | . . . . Unused Backups 2 | . . . 2 Power . | . . . . Propulsion 1 | . . . 1 Utility . | . . . . Weapon 1 | . . . 1 Tool/Special . | . . . . Average Slot Usage (%) 93 | . 90 100 85 Engine 13 | . 14 14 9 Leg 27 | . 28 28 23 Processor 12 | . 10 14 14 Protection 11 | . 9 14 8 Energy Gun 14 | . 14 14 14 Ballistic Gun 13 | . 12 14 13 Peak Build Rating 13 | 4 8 9 13 Average Rating 7 | 3 7 8 8 On Entrance 5 | . 4 8 9 Avg Prop Armor Cover (%) . | . . . . Naked Turns . | . . . . Heaviest Build 17 | 7 11 11 17 Greatest Support 20 | 20 20 20 20 Greatest Overweight (x) 1 | . . . 1 Average Overweight (x) . | . . . . Largest Inventory Capacity 5 | 5 5 5 5 Average Capacity 5 | 5 5 5 5 Most Carried 5 | . 5 5 4 Average Carried 4 | . 4 4 3 Final Capacity 5 | 5 5 5 5 Final Carried 5 | . 5 4 2 Class Distribution -------------------- 100% | Mutant Dominant Class ---------------- Mutant | -10/Materials Mutant | -10/Mines Mutant | -10/Subcaves Resources | -11 -10 -10 -10 ----------- Run | Yrd Mat Min Sub Matter Collected 352 | 240 57 16 39 Remotely . | . . . . Salvage Created 462 | . 334 30 98 Parts 32 | . 26 4 2 Haulers Intercepted 2 | . 2 . . Recyclers Shooed . | . . . . Parts Field Recycled . | . . . . Retrieved Matter . | . . . . Parts Self-Destructed 3 | . . . 3 Prevented . | . . . . Parts Restored . | . . . . Kills | -11 -10 -10 -10 ------- Run | Yrd Mat Min Sub Combat Hostiles Destroyed 12 | . 8 2 2 Guns 12 | . 8 2 2 Classes Destroyed 6 | . 5 . 1 Hauler 2 | . 2 . . Operator 1 | . 1 . . Watcher 2 | . 2 . . Swarmer 8 | . 6 2 . Grunt 2 | . 2 . . Subdweller 2 | . . . 2 Best Kill Streak 3 | . 3 2 1 Combat Bots Only 3 | . 3 2 1 Max Kills in Single Turn 2 | . 2 1 1 Gunslinging 1 | . 1 . . Exploded . | . . . . Melee . | . . . . Uniques/NPCs Destroyed . | . . . . Combat | -11 -10 -10 -10 -------- Run | Yrd Mat Min Sub Hostile Shots Fired 87 | . 39 11 37 Missed 17 | . 5 4 8 Hits 70 | . 34 7 29 Projectile 70 | . 34 7 29 Critical Strikes 1 | . . . 1 Damage Taken 991 | . 300 91 600 Core 257 | . 33 37 187 Absorbed by Shields . | . . . . Core Remaining (%) 100 | 100 . . . Volleys Fired 57 | . 29 6 22 Largest 2 | . 2 2 2 Hottest 70 | . 70 70 70 Shots Fired 111 | . 56 12 43 Gun 111 | . 56 12 43 Cannon . | . . . . Launcher . | . . . . Special . | . . . . Kinetic 54 | . 27 6 21 Thermal 57 | . 29 6 22 Explosive . | . . . . Electromagnetic . | . . . . Robot Hit Streak 18 | . 12 3 18 Robot Miss Streak 3 | . 2 3 2 Penetration Max . | . . . . Secondary Targets 5 | . 3 1 1 Max Gunslinging Chain 1 | . 1 1 1 Shots Hit Robots 74 | . 36 6 32 Core Hits 31 | . 22 3 6 Critical Kills . | . . . . Critical Parts Destroyed . | . . . . Critical Strikes 6 | . 5 . 1 Burn 6 | . 5 . 1 Melee Attacks . | . . . . Impact . | . . . . Slashing . | . . . . Piercing . | . . . . Sneak Attacks . | . . . . Combat Hostiles . | . . . . Follow-up Attacks . | . . . . Damage Inflicted 777 | . 396 54 327 Guns 777 | . 396 54 327 Cannons . | . . . . Explosions . | . . . . Melee . | . . . . Ramming . | . . . . Kinetic 287 | . 132 29 126 Thermal 490 | . 264 25 201 Explosive . | . . . . Electromagnetic . | . . . . Impact . | . . . . Slashing . | . . . . Piercing . | . . . . Highest Corruption . | . . . . Average Corruption . | . . . . Corruption Purged . | . . . . Corruption Blocked . | . . . . Overload Shots . | . . . . Overflow Damage . | . . . . Projectiles . | . . . . Explosions . | . . . . Melee . | . . . . Knockbacks . | . . . . Impact . | . . . . Kinetic . | . . . . Secondary . | . . . . Self-Inflicted Damage . | . . . . Shots . | . . . . Rammed . | . . . . Targets Rammed . | . . . . Kicked . | . . . . Crushed . | . . . . Highest Temperature 167 | . 167 148 4 Average Temperature 57 | . 54 81 2 Received Heat Transfer 72 | . 24 . 48 Siege Activations . | . . . . Martial Activations . | . . . . Shielding Activations . | . . . . Robots Disrupted . | . . . . Combat Hostiles . | . . . . Robots Corrupted . | . . . . Combat Hostiles . | . . . . Parts Fried . | . . . . Impact Corruptions . | . . . . Robots Melted . | . . . . Combat Hostiles . | . . . . Parts Melted 2 | . 1 . 1 Heat Transferred 1887 | . 1147 74 666 Parts Sabotaged . | . . . . Parts Stolen . | . . . . Parts Stripped . | . . . . Power Chain Reactions . | . . . . Alert | -11 -10 -10 -10 ------- Run | Yrd Mat Min Sub Maximum Alert Level . | . . . . Low Security (%) 100 | 100 100 100 . Level 1 . | . . . . Level 2 . | . . . . Level 3 . | . . . . Level 4 . | . . . . Level 5 . | . . . . High Security . | . . . . Max Security . | . . . . Peak Influence 70 | . 70 70 . Initial 11 | . . 11 . Average 14 | . 20 8 . Influence Increases 367 | . 247 120 . Destroy 0b10 Robot/C 260 | . 160 100 . Destroy 0b10 Robot/NC 25 | . 25 . . Destroy Leader 58 | . 38 20 . Successful Hack 9 | . 9 . . Lose Combat Pursuer 15 | . 15 . . Influence Decreases 367 | . 217 96 54 Entered New Map 48 | . . 19 29 Time Decay 319 | . 217 77 25 Squads Dispatched 2 | . 2 . . Investigation . | . . . . Extermination . | . . . . Reinforcement 2 | . 2 . . Assault . | . . . . Garrison . | . . . . Intercept . | . . . . Searches Triggered . | . . . . Construction Impeded . | . . . . Haulers Reinforced . | . . . . Active Scanning Responses . | . . . . Cargo Convoy Interrupts . | . . . . Stealth | -11 -10 -10 -10 --------- Run | Yrd Mat Min Sub Distress Signals 1 | . 1 . . Communications Jammed . | . . . . Distress Signals . | . . . . Times Spotted 19 | . 13 3 3 Peak Tracking Total 3 | . 3 3 2 Tactical Retreats 1 | . 1 . . Traps | -11 -10 -10 -10 ------- Run | Yrd Mat Min Sub Traps Triggered 1 | . . 1 . Indirectly . | . . . . Trap Hack Attempts . | . . . . Triggered . | . . . . Disarmed . | . . . . Reprogrammed . | . . . . Reused . | . . . . Traps Extracted . | . . . . Installed . | . . . . Triggered . | . . . . Machines | -11 -10 -10 -10 ---------- Run | Yrd Mat Min Sub Machines Disabled . | . . . . Max in Single Turn . | . . . . Machines Repaired . | . . . . Machines Dismantled . | . . . . Machines Sabotaged . | . . . . Overloaded Fab Kills . | . . . . Hacking | -11 -10 -10 -10 --------- Run | Yrd Mat Min Sub Machines Accessed 7 | . 4 2 1 Terminals 4 | . 4 . . Fabricators . | . . . . Repair Stations . | . . . . Recycling Units . | . . . . Scanalyzers . | . . . . Garrison Access . | . . . . Total Hacks 12 | . 7 2 3 Successful 7 | . 2 2 3 Failed 5 | . 5 . . Catastrophic . | . . . . Database Lockouts . | . . . . Manual 7 | . 7 . . Terminals 7 | . 7 . . Fabricators . | . . . . Repair Stations . | . . . . Recycling Units . | . . . . Scanalyzers . | . . . . Garrison Access . | . . . . Terminal Hacks 5 | . . 2 3 Record 3 | . . . 3 Open Door 2 | . . 2 . Fabricator Hacks . | . . . . Repair Station Hacks . | . . . . Recycling Unit Hacks . | . . . . Scanalyzer . | . . . . Garrison Access Hacks . | . . . . Unauthorized Hacks 2 | . 2 . . Terminals 2 | . 2 . . Botnet 2 | . 2 . . Fabricators . | . . . . Repair Stations . | . . . . Recycling Units . | . . . . Scanalyzers . | . . . . Garrison Access . | . . . . Data Cores Recovered . | . . . . Used . | . . . . Hacking Detections 2 | . 2 . . Full Trace Events . | . . . . Feedback Events . | . . . . Feedback Blocked . | . . . . Robot Schematics Acquired . | . . . . Robots Built . | . . . . Authchips . | . . . . Time . | . . . . Total Robot Build Rating . | . . . . Part Schematics Acquired . | . . . . Parts Built . | . . . . Authchips . | . . . . Time . | . . . . Total Part Build Rating . | . . . . Part Studies Acquired . | . . . . Parts Repaired . | . . . . Time . | . . . . Parts Recycled . | . . . . Recycled Matter . | . . . . Retrieved Matter . | . . . . Retrieved Components . | . . . . Parts Scanalyzed . | . . . . Part Schematics Acquired . | . . . . Parts Damaged . | . . . . Bothacking | -11 -10 -10 -10 ------------ Run | Yrd Mat Min Sub Used RIF Installer . | . . . . Robots Hacked . | . . . . Non-combat . | . . . . Combat . | . . . . Robot Hacks Applied . | . . . . Relay Couplers Released . | . . . . Fabnet Peak Effective % . | . . . . Robots Rewired . | . . . . Allies Hacked . | . . . . Hacks Repelled . | . . . . Allies | -11 -10 -10 -10 -------- Run | Yrd Mat Min Sub Total Allies 1 | . . 1 . Largest Group 1 | . . 1 1 Highest-Rated Group 31 | . . 31 31 Highest-Rated Ally 31 | . . 31 31 Total Orders . | . . . . Ally Attacks 5 | . . 5 . Total Damage 65 | . . 65 . Kills 3 | . . 3 . Allies Corrupted . | . . . . Allies Melted . | . . . . Intel | -11 -10 -10 -10 ------- Run | Yrd Mat Min Sub Active Infowar (turns) 1286 | . 465 568 253 Optics 1286 | . 465 568 253 Robot Analysis Total . | . . . . Derelict Logs Recovered 3 | . . 2 1 Drone Launches 5 | . . . 5 Drone Recoveries . | . . . . Exploration | -11 -10 -10 -10 ------------- Run | Yrd Mat Min Sub Turns Passed 1497 | 53 623 568 253 Spaces Moved 1040 | 40 429 426 145 Core 1 | 1 . . . Treads . | . . . . Legs 1039 | 39 429 426 145 Wheels . | . . . . Hover . | . . . . Flight . | . . . . Fastest Speed 50 | 50 120 120 120 Average Speed 120 | 118 120 120 124 Slowest Speed 190 | 120 120 120 190 Overloaded Moves . | . . . . Propulsion Burnouts . | . . . . Robots Hopped . | . . . . Potential Cave-ins . | . . . . Cave-ins Triggered . | . . . . Exploration Rate (%) 38 | 4 66 72 11 Regions Visited 3 Branch Regions 2 Pre-discovered Areas 2 | . . 1 1 Known Exits Taken . | . . . . Unknown Exits Taken 3 | 1 1 1 . Scrap Searched . | . . . . Spaces Dug . | . . . . Terrain Destroyed . | . . . . Melee . | . . . . Projectile . | . . . . AOE . | . . . . Terrain Rammed . | . . . . Walls Destroyed . | . . . . Machines Disabled . | . . . . Actions | -11 -10 -10 -10 --------- Run | Yrd Mat Min Sub Total 1180 | 43 485 472 180 Wait 63 | . 20 34 9 Move 1037 | 39 428 425 145 Hop . | . . . . Pick Up 7 | . 5 1 1 Fast Attach 7 | 4 3 . . Attach 3 | . . . 3 Detach . | . . . . Swap 3 | . . 3 . Drop 3 | . . 3 . Fire 57 | . 29 6 22 Melee . | . . . . Ram . | . . . . Kick . | . . . . Crush . | . . . . Escape Stasis . | . . . . Rewire . | . . . . Trap . | . . . . Miscellaneous . | . . . . Route ------- -11/Scrapyard -10/Materials (discovered 2 exits: [*Mat] / *Min) -10/Mines (discovered 3 exits: [*Mat x2] / *Sub) -10/Subcaves (discovered 1 exit: Rec) History --------- Turn | Location | Event 17 | -11/Scrapyard | Discovered new exit (range 15) 54 | -11/Scrapyard | Entered Materials 226 | -10/Materials | Discovered new exit (range 8) 316 | -10/Materials | Build established: Mutant 525 | -10/Materials | Discovered new exit (range 3) 677 | -10/Materials | Entered Mines 681 | -10/Mines | Learned location of Mines (-8) 861 | -10/Mines | Discovered new exit (range 11) 864 | -10/Mines | Learned Materials stockpile data 900 | -10/Mines | Met a Derelict who couldn't figure out how to use a Trap Extractor 1081 | -10/Mines | Received a Mining Laser from a helpful Derelict 1185 | -10/Mines | Discovered new exit (range 11) 1212 | -10/Mines | Found the Drone Emporium 1221 | -10/Mines | Found Prototype Device 1233 | -10/Mines | Discovered new exit (range 11) 1245 | -10/Mines | Entered Subcaves 1245 | -10/Subcaves | Accompanied by 1 ally 1249 | -10/Subcaves | Learned location of Zion (-6) 1255 | -10/Subcaves | Shifting Twisted Machinery released Mak. Leg 1320 | -10/Subcaves | Visited Clippyterm 1323 | -10/Subcaves | Identified exit to Recycling 1323 | -10/Subcaves | Learned Research security intel 1389 | -10/Subcaves | Core integrity fell below 50% 1405 | -10/Subcaves | Core integrity fell below 20% 1441 | -10/Subcaves | Lost 4 parts (1p1n1u1w) 1474 | -10/Subcaves | Identified Sensor Drone Bay 1498 | -10/Subcaves | Destroyed by MR-NH6(R) with Subdweller Machine Gun Last Messages --------------- R7-GJ8(g) slips back into the shadows. 9I-8O8(R) suffers critical hit (Burn). Lgt. Armor Plating destroyed. Sub. Power Source melted. 9I-8O8(R) destroyed. Switching to secondary target: YU-7Q3(R). Ion Engine destroyed. Subatomizers dissect the Sub. Monowheel. Lgt. Assault Rifle destroyed. Aluminum Leg destroyed. Subatomizers dissect the Sub. Monowheel. YU-7Q3(R) destroyed. Acquired 29 matter. Acquired Sub. Laser. Subatomizers dissect the Sub. Monowheel. Identified Sensor Drone Bay. Acquired 10 matter. Sensor Drone released from Sensor Drone Bay. Lgt. Assault Rifle destroyed. Map ----- +----------------------------------------------------+ | | | | | | | | | | | | | ?????????????????????????????????????????????????? | | ?????????????????????????????????????????????????? | | ?????????????????????????????????????????????????? | | ?????????????????????????????????????????????????? | | ?????????????????????????????????????????????????? | | ?????????????????????????????????????????????????? | | ?????????????????????????????????????????????????? | | ?????????????????????????????????????????????????? | | ???????????#######???????????????????????????????? | | ???????????#"""""#???????????????????????????????? | | ???????????#""X""#???????????????????????????????? | | ???????????#" "#???????????????????????????????? | | ???????????### ###???????????????????????????????? | | ????????????## ###???????????????????????????????? | | ???######??## #??????####?????????????????????? | | ??## #?## ####??## ##?????#####??????????? | | ??# #??# # #### #??#### ##?????????? | | ?## ##### R #?## #?????????? | | ?# ## ## ## # ### #?????????? | | ### #### @ ## """ #????? | | ## ##?# # ## nnn ###??? "" #???? | | #??## ### ###?????" "#??? | | ## # #???# ### n #??????? ??? | | #?## # ## #?# n #????????? ??? | | ### # ### ##?????????????? | | ## ### #??????????????? | | ##### # #?# ##??????????????? | | ##???##### ## ##?# ##???????????????? | | #???????# ####??## & ##??????##### ##? | | ## #??????? ##??????##% %##?????## "" #? | | ?# #?????######????????# = ####### ##" ##? | | ?## #??????????????????# ## ##?? #?? | | ??## #??????????????????# ## #????#?? | | ???# ##??????????????????# ## #??????? | | ???## #??????????????????## ## ####??????? | | ????? ??????????????????# ##?????????? | | ????? #?????????????????# #####??????????? | | ?????" ##?????????????????# # #????????? | | ????? #??????????????????# #????????? | | ?????# ??????????????????## #??????? | | ?????? ???????????????????## ## #########??????? | | ?????? ????????????????????#######??????????????? | | ?????????????????????????????????????????????????? | | ?????????????????????????????????????????????????? | +----------------------------------------------------+ Best States ------------- Heat Dissipation 25 Energy Generation 10 Energy Capacity 250 Matter Stores 300 Matter Capacity 300 Sight Range 18 Terrain Scan Density 10 Armor Coverage 150 Evasion (%) 55 Item Schematics ----------------- None Robot Schematics ------------------ None Fabricated ------------ Nothing Repaired ---------- Nothing Studied --------- None Alien Tech Used ----------------- None Achievements -------------- None Challenges ------------ None Game ------ Seed SystemNetworkTransmogrifier Manual? 0 Play Time 00:10:59 Cumulative 41.4 hours Start 2026.06.29 @ 19:18:58 End 2026.06.29 @ 19:27:47 Sessions 1 Manual Loads 0 Difficulty Rogue Special Mode None Game No. 43 Rogue 43 Adventurer 0 Explorer 0 Win Type - Total 0 Types 0/0/0/0/0/0/0/0/0/0 Lore% 50 Gallery% 33 Achievement% 30 Wizard Run 0 Options --------- Layout 1 ASCII 0 Keyboard 1 Movement Numpad Keybinds 0 Fullscreen 1 Font 24/X11 Map View 50x35 Zoom Use 0% Tactical HUD 0 Map Filters NONE Filters NONE Steam 1 RUN: 73b18cd1-b51c-4958-9f08-fa837cf68a77